bitfinex-derivatives/quotes_BTCF0:USTF0_20251110
["timestamp","ask_amount","ask_price","bid_price","bid_amount"]
[1762792744868,0.63371127,105280.0,105270.0,0.00219803]
[1762792745165,0.08359456,105280.0,105270.0,0.40807803]
[1762792745471,0.08359456,105280.0,105270.0,0.6219447]
[1762792745472,0.003,105280.0,105270.0,0.6219447]
[1762792746367,0.003,105280.0,105270.0,0.00219803]
[1762792746368,0.63800767,105280.0,105270.0,0.00219803]
[1762792746670,0.17990565,105280.0,105270.0,0.36299803]
[1762792746869,0.1583583,105280.0,105270.0,0.50309533]
[1762792747271,0.005,105280.0,105270.0,0.6219447]
[1762792747463,0.02355297,105280.0,105270.0,0.6219447]
[1762792747664,0.002,105280.0,105270.0,0.50309533]
[1762792747862,0.002,105280.0,105270.0,0.6219447]
[1762792748271,0.09514176,105290.0,105280.0,0.1400883]
[1762792748463,0.16180974,105290.0,105280.0,0.50308633]
[1762792748664,0.16180997,105290.0,105280.0,0.50308633]
[1762792748973,0.09514176,105290.0,105280.0,0.51607633]
[1762792749275,0.00014246,105290.0,105280.0,0.51607633]
[1762792749571,0.00114246,105290.0,105280.0,0.51607633]
[1762792749770,0.09614176,105290.0,105280.0,0.51607633]
[1762792750071,0.14125176,105290.0,105280.0,0.50308633]
[1762792750274,0.14225176,105290.0,105280.0,0.50308633]
[1762792751573,0.00214246,105290.0,105280.0,0.644634]
[1762792751769,0.14225176,105290.0,105280.0,0.40807803]
[1762792751968,0.26110113,105290.0,105280.0,0.04727803]
[1762792752164,0.14225176,105290.0,105280.0,0.04727803]
[1762792752473,0.14225176,105290.0,105280.0,0.51607633]
[1762792752675,0.14225176,105290.0,105280.0,0.40807803]
[1762792753275,0.14225176,105290.0,105280.0,0.50308633]
[1762792754560,0.14225176,105290.0,105280.0,0.51607633]
[1762792754959,0.14225176,105290.0,105280.0,0.50308633]
[1762792755164,0.14225176,105290.0,105280.0,0.36299803]
[1762792755471,0.14225176,105290.0,105280.0,0.00219803]
[1762792755778,0.14225176,105290.0,105270.0,0.4558108]
[1762792755779,0.1401273,105270.0,105260.0,0.51491876]
[1762792756074,0.1401273,105270.0,105260.0,0.50324679]
[1762792756872,0.04511,105270.0,105260.0,0.51711679]
[1762792757074,0.04511,105270.0,105260.0,0.51811679]
[1762792757269,0.1401273,105270.0,105260.0,0.51811679]
[1762792758476,0.1401273,105270.0,105260.0,0.41022049]
[1762792758674,0.1401273,105270.0,105260.0,0.50524689]
[1762792758981,0.1533637,105280.0,105270.0,0.1400973]
[1762792759166,0.1533637,105280.0,105270.0,0.50309533]
[1762792759678,0.13844826,105290.0,105280.0,0.1534983]
[1762792759878,0.16002531,105290.0,105280.0,0.42148803]
[1762792760774,0.16002531,105290.0,105280.0,0.51649633]
[1762792761669,0.16502531,105290.0,105280.0,0.51649633]
[1762792762073,0.14344826,105290.0,105280.0,0.51649633]
[1762792762269,0.14244826,105290.0,105280.0,0.42148803]
[1762792762468,0.14244826,105290.0,105280.0,0.39614083]
[1762792762877,0.13944826,105290.0,105280.0,0.49114913]
[1762792763069,0.14044826,105290.0,105280.0,0.49114913]
[1762792763262,0.11763496,105290.0,105280.0,0.49114913]
[1762792763871,0.0453,105290.0,105280.0,0.6099985]
[1762792764263,0.1402993,105290.0,105280.0,0.6099985]
[1762792764468,0.1402993,105290.0,105280.0,0.49114913]
[1762792764671,0.1402993,105290.0,105280.0,0.39614083]
[1762792765671,0.1402993,105290.0,105280.0,0.49114913]
[1762792766566,0.1402993,105290.0,105280.0,0.39614083]
[1762792766775,0.16185153,105290.0,105280.0,0.39614083]
[1762792766970,0.52265153,105290.0,105280.0,0.00219803]
[1762792767768,0.696469,105290.0,105280.0,0.00219803]
[1762792767974,0.335669,105290.0,105280.0,0.00219803]
[1762792768173,0.16185153,105290.0,105280.0,0.50350633]
[1762792768569,0.16185153,105290.0,105280.0,0.40849803]
[1762792769377,0.16185153,105290.0,105280.0,0.36299803]
[1762792769969,0.16185153,105290.0,105280.0,0.40849803]
[1762792770171,0.16185153,105290.0,105280.0,0.02464803]
[1762792770365,0.16185153,105290.0,105280.0,0.00219803]
[1762792770570,0.16185153,105290.0,105280.0,0.02464803]
[1762792771671,0.16260464,105290.0,105280.0,0.01302262]
[1762792772073,0.16260464,105290.0,105280.0,0.03607262]
[1762792773583,0.69722211,105290.0,105280.0,0.00073267]
[1762792773971,0.52340464,105290.0,105280.0,0.02318267]
[1762792774274,0.1383173,105270.0,105260.0,0.51533826]
[1762792774471,0.06705026,105270.0,105260.0,0.51607093]
[1762792774981,0.16206756,105270.0,105260.0,0.40717513]
[1762792775475,0.16206756,105270.0,105260.0,0.40817513]
[1762792775880,0.16206756,105270.0,105260.0,0.50420153]
[1762792776078,0.16206756,105270.0,105260.0,0.40917513]
[1762792776484,0.16206756,105270.0,105260.0,0.40817513]
[1762792777580,0.16206756,105270.0,105260.0,0.40717513]
[1762792778475,0.17659756,105270.0,105260.0,0.40717513]
[1762792778683,0.35141503,105270.0,105260.0,0.02332513]
[1762792778878,0.17759756,105270.0,105260.0,0.40717513]
[1762792779575,0.17759756,105270.0,105260.0,0.04637513]
[1762792779773,0.17614911,105270.0,105260.0,0.04637513]
[1762792780776,0.17614911,105270.0,105260.0,0.42076513]
[1762792780777,0.16261911,105270.0,105260.0,0.42076513]
[1762792780982,0.17614911,105270.0,105260.0,0.42076513]
[1762792781772,0.17514911,105270.0,105260.0,0.42076513]
[1762792782178,0.17514911,105270.0,105260.0,0.51579153]
[1762792782483,0.16161911,105270.0,105260.0,0.51579153]
[1762792782676,0.17514911,105270.0,105260.0,0.42076513]
[1762792782875,0.17614911,105270.0,105260.0,0.42076513]
[1762792783471,0.17614911,105270.0,105260.0,0.40717513]
[1762792783674,0.71076658,105270.0,105260.0,6e-08]
[1762792783879,0.1518744,105240.0,105230.0,0.41999882]
[1762792784076,0.05081,105220.0,105210.0,0.41989]
[1762792784376,1.03628417,105220.0,105210.0,0.00073267]
[1762792784684,0.1383806,105200.0,105190.0,0.41989]
[1762792784985,0.47269863,105200.0,105190.0,0.42076513]
[1762792785177,0.47279968,105200.0,105190.0,0.42076513]
[1762792785483,0.47279968,105200.0,105190.0,0.43005925]
[1762792785682,0.47279968,105200.0,105190.0,0.42076513]
[1762792786186,0.37771908,105200.0,105190.0,0.51585473]
[1762792786483,0.47279968,105200.0,105190.0,0.51585473]
[1762792786783,0.37771908,105200.0,105190.0,0.51585473]
[1762792787483,0.47279968,105200.0,105190.0,0.51585473]
[1762792787879,0.47279968,105200.0,105190.0,0.43024895]
[1762792788282,0.64661715,105200.0,105190.0,0.40717513]
[1762792788472,0.47279968,105200.0,105190.0,0.40717513]
[1762792788677,0.47279968,105200.0,105190.0,0.04637513]
[1762792788882,0.83359968,105200.0,105190.0,0.04637513]
[1762792789080,0.83359968,105200.0,105190.0,0.02332513]
[1762792789281,0.83359968,105200.0,105190.0,0.04616513]
[1762792791287,0.04559908,105200.0,105190.0,0.14125473]
[1762792791587,0.47279968,105200.0,105190.0,0.14125473]
[1762792791990,0.47279968,105200.0,105190.0,0.50205473]
[1762792793085,0.47279968,105200.0,105190.0,0.40696513]
[1762792793782,0.64661715,105200.0,105190.0,0.36167513]
[1762792793991,1.00741715,105200.0,105190.0,0.00014246]
[1762792795182,1.00741715,105200.0,105190.0,0.02326513]
[1762792795383,0.83359968,105200.0,105190.0,0.02326513]
[1762792795893,0.83359968,105200.0,105190.0,0.04610513]
[1762792796692,0.83359968,105200.0,105190.0,0.00087513]
[1762792796883,0.83359968,105200.0,105190.0,0.00014246]
[1762792798591,0.84624968,105200.0,105190.0,0.00014246]
[1762792798987,0.84624968,105200.0,105190.0,0.04532246]
[1762792799187,0.84624968,105200.0,105190.0,0.04605513]
[1762792800283,0.04559908,105200.0,105190.0,0.51494473]
[1762792800484,0.33413908,105200.0,105190.0,0.51494473]
[1762792800680,0.00229908,105200.0,105190.0,0.6887622]
[1762792800878,0.00010105,105200.0,105190.0,0.6887622]
[1762792801583,0.00014246,105220.0,105210.0,0.1402515]
[1762792801584,0.09520496,105220.0,105210.0,0.1402515]
[1762792801784,0.29442049,105220.0,105210.0,0.50178417]
[1762792801989,0.33981049,105220.0,105210.0,0.50178417]
[1762792802493,0.42924299,105220.0,105210.0,0.50178417]
[1762792802887,0.45211299,105220.0,105210.0,0.50278417]
[1762792803083,0.35705049,105220.0,105210.0,0.50278417]
[1762792803279,0.33418049,105220.0,105210.0,0.50278417]
[1762792803485,0.47463299,105220.0,105210.0,0.40771267]
[1762792803687,0.47463299,105220.0,105210.0,0.04591267]
[1762792803886,0.47463299,105220.0,105210.0,0.00073267]
[1762792804086,0.83543299,105220.0,105210.0,0.00073267]
[1762792804994,0.83643299,105220.0,105210.0,0.00073267]
[1762792805687,0.47463299,105220.0,105210.0,0.00173267]
[1762792805888,0.47663299,105220.0,105210.0,0.00173267]
[1762792806298,0.47663299,105220.0,105210.0,0.00073267]
[1762792806491,0.1404615,105210.0,105200.0,0.38294]
[1762792806692,0.677277,105210.0,105200.0,0.00073267]
[1762792806891,0.14265953,105210.0,105200.0,0.00073267]
[1762792807286,0.50345953,105210.0,105200.0,0.00073267]
[1762792807490,0.14265953,105210.0,105200.0,0.38367267]
[1762792807688,0.14265953,105210.0,105200.0,0.40671267]
[1762792807890,0.14265953,105210.0,105200.0,0.04591267]
[1762792808584,0.14365953,105210.0,105200.0,0.14099327]
[1762792809096,0.14465953,105210.0,105200.0,0.51479327]
[1762792809296,0.14465953,105210.0,105200.0,0.50179327]
[1762792809498,0.14465953,105210.0,105200.0,0.40671267]
[1762792811204,0.14465953,105210.0,105200.0,0.04591267]
[1762792811696,0.47641953,105210.0,105200.0,0.41971267]
[1762792812009,0.47641953,105210.0,105200.0,0.04591267]
[1762792812196,0.49819386,105210.0,105200.0,0.02287267]
[1762792812394,0.49819386,105210.0,105200.0,0.40671267]
[1762792812703,0.49819386,105210.0,105200.0,0.04591267]
[1762792813202,0.49819386,105210.0,105200.0,0.51479327]
[1762792813203,0.40312236,105210.0,105200.0,0.51479327]
[1762792813398,0.40300236,105210.0,105200.0,0.51479327]
[1762792813789,0.51072386,105210.0,105200.0,0.40671267]
[1762792813995,0.51072386,105210.0,105200.0,0.41971267]
[1762792814394,0.16643386,105210.0,105200.0,0.51479327]
[1762792814693,0.002,105210.0,105200.0,0.68861074]
[1762792815892,0.48798953,105210.0,105200.0,0.04591267]
[1762792816099,0.87054469,105210.0,105200.0,0.04791267]
[1762792816299,0.50874469,105210.0,105200.0,0.00273267]
[1762792816499,0.50874469,105210.0,105200.0,0.00473267]
[1762792816702,0.50874469,105210.0,105200.0,0.04991267]
[1762792816895,0.50874469,105210.0,105200.0,0.04791267]
[1762792817094,0.50874469,105210.0,105200.0,0.04891267]
[1762792817292,0.86954469,105210.0,105200.0,0.02587267]
[1762792817505,1.04336216,105210.0,105200.0,0.002]
[1762792817800,1.04436216,105210.0,105200.0,0.002]
[1762792818005,0.1404706,105200.0,105190.0,0.00014246]
[1762792818205,0.52522379,105200.0,105190.0,0.00087513]
[1762792818393,0.69904126,105200.0,105190.0,0.00014246]
[1762792819906,0.1383577,105170.0,105160.0,0.02106]
[1762792820098,0.85483089,105170.0,105160.0,0.02179267]
[1762792820299,0.83307573,105170.0,105160.0,0.02179267]
[1762792820594,0.39892175,105170.0,105160.0,0.14011937]
[1762792820794,0.39892175,105170.0,105160.0,0.51427937]
[1762792821705,0.39892175,105170.0,105160.0,0.52363074]
[1762792821899,0.47221945,105170.0,105160.0,0.52763074]
[1762792822098,0.39892175,105170.0,105160.0,0.52763074]
[1762792822405,0.39890696,105170.0,105160.0,0.52763074]
[1762792822598,0.39890696,105170.0,105160.0,0.52363074]
[1762792823114,0.37716803,105170.0,105160.0,0.52363074]
[1762792823400,0.47227573,105170.0,105160.0,0.04500267]
[1762792823602,0.47227573,105170.0,105160.0,0.40580267]
[1762792823901,0.85480913,105170.0,105160.0,0.04500267]
[1762792824295,0.85480913,105170.0,105160.0,0.00073267]
[1762792824498,0.1509467,105160.0,105150.0,0.00014246]
[1762792824696,0.15314473,105160.0,105150.0,0.00087513]
[1762792824901,0.15314473,105160.0,105150.0,0.02193513]
[1762792825307,0.15314473,105160.0,105150.0,0.04514513]
[1762792825502,0.15314473,105160.0,105150.0,0.14027093]
[1762792825709,0.15314473,105160.0,105150.0,0.04614513]
[1762792825904,0.00219803,105160.0,105150.0,0.6758884]
[1762792826205,0.24745,105170.0,105160.0,0.05763]
[1762792826407,0.24964803,105170.0,105160.0,0.51427937]
[1762792826999,0.00219803,105170.0,105160.0,0.51427937]
[1762792827506,0.02363803,105170.0,105160.0,0.51427937]
[1762792827906,0.14055573,105170.0,105160.0,0.51427937]
[1762792828206,0.14055573,105170.0,105160.0,0.40580267]
[1762792828711,0.00219803,105170.0,105160.0,0.51427937]
[1762792829407,0.00219803,105170.0,105160.0,0.63302611]
[1762792829810,0.33198246,105180.0,105170.0,0.1393777]
[1762792830107,0.33418049,105180.0,105170.0,0.61965711]
[1762792830307,0.00234049,105180.0,105170.0,0.61965711]
[1762792830501,0.00014246,105180.0,105170.0,0.85733711]
[1762792830908,0.1509782,105210.0,105200.0,0.05316]
[1762792831110,0.48501623,105210.0,105200.0,0.04500267]
[1762792831308,0.48501623,105210.0,105200.0,0.02179267]
[1762792831612,0.50664632,105210.0,105200.0,0.40580267]
[1762792832298,0.62639306,105210.0,105200.0,0.00073267]
[1762792832614,0.1383306,105200.0,105190.0,0.38200246]
[1762792832812,0.16215872,105200.0,105190.0,0.02193513]
[1762792833312,0.52295872,105200.0,105190.0,0.00087513]
[1762792833612,0.16215872,105200.0,105190.0,0.00087513]
[1762792834312,0.16215872,105200.0,105190.0,0.04514513]
[1762792834907,0.16415872,105200.0,105190.0,0.04514513]
[1762792835710,0.16415872,105200.0,105190.0,0.00087513]
[1762792835904,0.14252863,105200.0,105190.0,0.02193513]
[1762792836510,0.14152863,105200.0,105190.0,0.00087513]
[1762792838512,0.62107537,105200.0,105190.0,0.00014246]
[1762792838699,0.64272615,105200.0,105190.0,0.00014246]
[1762792839104,0.64372615,105200.0,105190.0,0.00014246]
[1762792841005,0.1522586,105180.0,105160.0,0.37416]
[1762792841312,0.1383758,105150.0,105140.0,7.131e-05]
[1762792841512,0.1165929,105120.0,105110.0,0.38186]
[1762792841708,0.14060093,105120.0,105110.0,0.40580267]
[1762792842021,0.138412,105110.0,105100.0,0.00014246]
[1762792842312,0.04325,105080.0,105070.0,0.4770582]
[1762792842515,0.16428385,105080.0,105070.0,0.50100087]
[1762792842812,0.04553711,105080.0,105070.0,0.86180087]
[1762792843019,0.17819385,105080.0,105070.0,0.36153267]
[1762792843209,0.05944711,105080.0,105070.0,0.36153267]
[1762792843409,0.17819385,105080.0,105070.0,0.36153267]
[1762792843810,0.17819385,105080.0,105070.0,0.45673087]
[1762792844111,0.05944711,105080.0,105070.0,0.50100087]
[1762792844312,0.05944711,105080.0,105070.0,0.40580267]
[1762792844313,0.04553711,105080.0,105070.0,0.40580267]
[1762792844513,0.37757711,105080.0,105070.0,0.40580267]
[1762792844714,0.37757711,105080.0,105070.0,0.50400087]
[1762792844915,0.37757711,105080.0,105070.0,0.40880267]
[1762792845110,0.47276621,105080.0,105070.0,0.41080267]
[1762792845311,0.47276621,105080.0,105070.0,0.50600087]
[1762792845312,0.39148711,105080.0,105070.0,0.50600087]
[1762792845621,0.37757711,105080.0,105070.0,0.50600087]
[1762792847406,0.37757711,105080.0,105070.0,0.41080267]
[1762792847613,0.37757711,105080.0,105070.0,0.50600087]
[1762792847907,0.33424711,105080.0,105070.0,0.86680087]
[1762792848106,0.33424711,105080.0,105070.0,0.98554761]
[1762792848312,0.33424711,105080.0,105070.0,0.86680087]
[1762792850121,0.33424711,105080.0,105070.0,0.98554761]
[1762792850122,0.00228711,105080.0,105070.0,0.98554761]
[1762792850510,0.00228711,105080.0,105070.0,1.22346761]
[1762792850825,0.14044621,105080.0,105070.0,0.86680087]
[1762792851822,0.02372711,105080.0,105070.0,0.86680087]
[1762792852122,0.00228711,105080.0,105070.0,0.86680087]
[1762792852915,0.04578711,105080.0,105070.0,0.86680087]
[1762792853127,0.00228711,105080.0,105070.0,0.86680087]
[1762792853619,0.11944621,105080.0,105070.0,0.86680087]
[1762792853820,0.00228711,105080.0,105070.0,0.86680087]
[1762792854218,0.00228711,105080.0,105070.0,0.86480087]
[1762792855020,0.00228711,105080.0,105070.0,0.86380087]
[1762792855629,0.00014246,105090.0,105080.0,0.1525791]
[1762792855824,0.00234049,105090.0,105080.0,0.63285851]
[1762792856632,0.09752059,105090.0,105080.0,0.51411177]
[1762792857631,0.00234049,105090.0,105080.0,0.51411177]
[1762792857827,0.09752059,105090.0,105080.0,0.51411177]
[1762792858130,0.00234049,105090.0,105080.0,0.51411177]
[1762792858729,0.00234049,105090.0,105080.0,0.63285851]
[1762792859637,0.00014246,105090.0,105080.0,0.63385851]
[1762792859925,0.04303,105120.0,105110.0,0.139302]
[1762792860131,0.09735093,105120.0,105110.0,0.40567267]
[1762792860330,0.02385803,105120.0,105110.0,0.50083467]
[1762792860526,0.00219803,105120.0,105110.0,0.50083467]
[1762792860724,0.14038093,105120.0,105110.0,0.50083467]
[1762792860926,0.27181767,105120.0,105110.0,0.40567267]
[1762792861134,0.27181767,105120.0,105110.0,0.50083467]
[1762792861432,0.09735093,105120.0,105110.0,0.50083467]
[1762792861622,0.00219803,105120.0,105110.0,0.85742141]
[1762792861824,0.33178246,105130.0,105120.0,0.1525429]
[1762792862031,0.00014246,105130.0,105120.0,0.63282231]
[1762792862332,0.00014246,105130.0,105120.0,0.51407557]
[1762792862629,0.14051439,105130.0,105120.0,0.41892267]
[1762792862829,0.25926113,105130.0,105120.0,0.38457267]
[1762792863027,0.25926113,105130.0,105120.0,0.50082557]
[1762792863233,0.14051439,105130.0,105120.0,0.50082557]
[1762792863535,0.14051439,105130.0,105120.0,0.40567267]
[1762792863735,0.25926113,105130.0,105120.0,0.40567267]
[1762792863930,0.14051439,105130.0,105120.0,0.40567267]
[1762792864134,0.14051439,105130.0,105120.0,0.02377267]
[1762792864135,0.59094113,105130.0,105120.0,0.02377267]
[1762792864325,0.59094113,105130.0,105120.0,0.04487267]
[1762792864525,0.59094113,105130.0,105120.0,0.15327557]
[1762792864526,0.37705049,105130.0,105120.0,0.15327557]
[1762792864726,0.45182439,105130.0,105120.0,0.51407557]
[1762792865429,0.47319439,105130.0,105120.0,0.41892267]
[1762792865628,0.37905049,105130.0,105120.0,0.05812267]
[1762792865824,0.47419439,105130.0,105120.0,0.51407557]
[1762792866020,0.47419439,105130.0,105120.0,0.41892267]
[1762792866436,0.47419439,105130.0,105120.0,0.51407557]
[1762792866834,0.37905049,105130.0,105120.0,0.51407557]
[1762792867330,0.37805049,105130.0,105120.0,0.51407557]
[1762792867629,0.47219439,105130.0,105120.0,0.51407557]
[1762792867836,0.37705049,105130.0,105120.0,0.51407557]
[1762792868130,0.00014246,105130.0,105120.0,0.63282231]
[1762792868439,0.5116367,105160.0,105150.0,0.04414]
[1762792868732,0.65420008,105160.0,105150.0,0.04487267]
[1762792869137,0.55908338,105160.0,105150.0,0.13999847]
[1762792869330,0.53545334,105160.0,105150.0,0.04487267]
[1762792869526,0.53545334,105160.0,105150.0,0.13999847]
[1762792869735,0.65420008,105160.0,105150.0,0.13999847]
[1762792869933,0.19828338,105160.0,105150.0,0.50079847]
[1762792870233,0.00219803,105160.0,105150.0,0.50079847]
[1762792870835,0.00619803,105160.0,105150.0,0.50079847]
[1762792871022,0.00619803,105160.0,105150.0,0.61954521]
[1762792871227,0.007,105160.0,105150.0,0.6290211]
[1762792871433,0.00014246,105170.0,105160.0,0.1500267]
[1762792871630,1.12044244,105200.0,105190.0,0.04414]
[1762792871835,1.47571771,105200.0,105190.0,0.04487267]
[1762792873229,0.75910527,105200.0,105190.0,0.13996227]
[1762792873429,0.84523863,105200.0,105190.0,0.04487267]
[1762792874132,0.48443863,105200.0,105190.0,0.04487267]
[1762792874334,0.48743863,105200.0,105190.0,0.02377267]
[1762792874537,0.84823863,105200.0,105190.0,0.04487267]
[1762792874735,0.84823863,105200.0,105190.0,0.02377267]
[1762792874943,0.96398537,105200.0,105190.0,0.02377267]
[1762792875133,0.48443863,105200.0,105190.0,0.04487267]
[1762792875736,0.60318537,105200.0,105190.0,0.04487267]
[1762792876436,0.48443863,105200.0,105190.0,0.04487267]
[1762792876638,0.48443863,105200.0,105190.0,0.13996227]
[1762792877030,0.48443863,105200.0,105190.0,0.04487267]
[1762792877230,0.48443863,105200.0,105190.0,0.13996227]
[1762792877433,0.14030863,105200.0,105190.0,0.04487267]
[1762792877634,0.14030863,105200.0,105190.0,0.40667267]
[1762792878042,0.15299863,105200.0,105190.0,0.40667267]
[1762792878242,0.15299863,105200.0,105190.0,0.50176227]
[1762792878537,0.15299863,105200.0,105190.0,0.40667267]
[1762792880139,0.15299863,105200.0,105190.0,0.50176227]
[1762792880436,0.04522803,105200.0,105190.0,0.50076227]
[1762792880642,0.00219803,105200.0,105190.0,0.62050901]
[1762792880938,0.00219803,105200.0,105190.0,0.50176227]
[1762792881138,0.04805803,105200.0,105190.0,0.50176227]
[1762792881343,0.14313863,105200.0,105190.0,0.50076227]
[1762792881737,0.14313863,105200.0,105190.0,0.40567267]
[1762792881935,0.15575863,105200.0,105190.0,0.40567267]
[1762792882241,0.06067803,105200.0,105190.0,0.50076227]
[1762792882442,0.15575863,105200.0,105190.0,0.40567267]
[1762792882833,0.15575863,105200.0,105190.0,0.50076227]
[1762792883945,0.15575863,105200.0,105190.0,0.40567267]
[1762792884148,0.60562537,105200.0,105190.0,0.00073267]
[1762792884342,0.1409496,105190.0,105180.0,0.00014246]
[1762792884541,0.62269437,105190.0,105180.0,0.00014246]
[1762792884737,0.16466179,105190.0,105180.0,0.04565513]
[1762792884943,0.26189437,105190.0,105180.0,0.04565513]
[1762792885144,0.14314763,105190.0,105180.0,0.05848513]
[1762792885346,0.04805803,105190.0,105180.0,0.51438373]
[1762792885645,0.14314763,105190.0,105180.0,0.51538373]
[1762792885848,0.14314763,105190.0,105180.0,0.42028513]
[1762792886547,0.14314763,105190.0,105180.0,0.40745513]
[1762792886746,0.14314763,105190.0,105180.0,0.40845513]
[1762792887055,0.14314763,105190.0,105180.0,0.40745513]
[1762792887741,0.14314763,105190.0,105180.0,0.40645513]
[1762792888541,0.04805803,105190.0,105180.0,0.51438373]
[1762792888741,0.00219803,105190.0,105180.0,0.51438373]
[1762792889552,0.47219396,105210.0,105200.0,0.05761]
[1762792889858,0.02390761,105210.0,105200.0,0.51422327]
[1762792890242,0.00234049,105210.0,105200.0,0.51422327]
[1762792890849,0.09741199,105210.0,105200.0,0.51422327]
[1762792891246,0.02561049,105210.0,105200.0,0.87502327]
[1762792891447,0.00234049,105210.0,105200.0,0.87502327]
[1762792891647,0.09741199,105210.0,105200.0,0.87502327]
[1762792892547,0.14327199,105210.0,105200.0,0.77994267]
[1762792892749,0.69973352,105210.0,105200.0,0.04551267]
[1762792893049,0.69973352,105210.0,105200.0,0.00073267]
[1762792893241,0.33893352,105210.0,105200.0,0.00073267]
[1762792893641,0.1535606,105200.0,105190.0,0.04478]
[1762792893843,0.68270016,105200.0,105190.0,0.00073267]
[1762792894042,0.1409496,105190.0,105180.0,0.02187246]
[1762792894250,0.16471759,105190.0,105180.0,0.50155383]
[1762792894450,0.16471759,105190.0,105180.0,0.04565513]
[1762792894749,0.33880916,105190.0,105180.0,0.02260513]
[1762792894953,0.69960916,105190.0,105180.0,0.00087513]
[1762792895340,0.69960916,105190.0,105180.0,0.00014246]
[1762792895549,0.1183867,105160.0,105150.0,0.40558]
[1762792895750,0.14317473,105160.0,105150.0,0.40631267]
[1762792895944,0.00219803,105160.0,105150.0,0.51082789]
[1762792896353,0.37714,105180.0,105170.0,0.1398877]
[1762792896552,0.50867692,105180.0,105170.0,0.04551267]
[1762792896752,1.04356849,105180.0,105170.0,0.00073267]
[1762792897958,1.04358713,105180.0,105170.0,0.00073267]
[1762792898255,0.1409677,105170.0,105160.0,0.04492246]
[1762792898456,0.69969623,105170.0,105160.0,0.04565513]
[1762792898753,0.69969623,105170.0,105160.0,0.00014246]
[1762792898946,0.33889623,105170.0,105160.0,0.36167513]
[1762792899146,0.33889623,105170.0,105160.0,0.50157183]
[1762792899342,0.06969696,105170.0,105160.0,0.51362183]
[1762792899654,0.06969696,105170.0,105160.0,0.50157183]
[1762792899955,0.16480466,105170.0,105160.0,0.51362183]
[1762792900258,0.16480466,105170.0,105160.0,0.40745513]
[1762792900642,0.16480466,105170.0,105160.0,0.40645513]
[1762792901259,0.16480466,105170.0,105160.0,0.51362183]
[1762792901755,0.16480466,105170.0,105160.0,0.40645513]
[1762792902064,0.69969623,105170.0,105160.0,0.00087513]
[1762792902850,0.69969623,105170.0,105160.0,0.00014246]
[1762792903456,0.1409948,105140.0,105130.0,0.51023822]
[1762792903764,0.04805803,105140.0,105130.0,0.51097089]
[1762792904150,0.00219803,105140.0,105130.0,0.51097089]
[1762792905051,0.00219803,105140.0,105130.0,0.51197089]
[1762792905552,0.00219803,105140.0,105130.0,0.51297089]
[1762792906160,0.00219803,105140.0,105130.0,0.51197089]
[1762792906457,0.12060283,105140.0,105130.0,0.51397089]
[1762792906757,0.15581283,105140.0,105130.0,0.50545657]
[1762792907154,0.15581283,105140.0,105130.0,0.51514335]
[1762792907858,0.15581283,105140.0,105130.0,0.50445657]
[1762792908654,0.14319283,105140.0,105130.0,0.51399935]
[1762792908850,0.3299044,105140.0,105130.0,0.40931267]
[1762792909162,0.6907044,105140.0,105130.0,0.00173267]
[1762792909462,0.71232452,105140.0,105130.0,0.003]
[1762792909653,0.6907044,105140.0,105130.0,0.003]
[1762792909849,0.71232566,105140.0,105130.0,0.003]
[1762792910364,0.138492,105110.0,105100.0,0.40316]
[1762792910664,0.6460616,105110.0,105100.0,0.04309267]
[1762792910962,0.152411,105100.0,105090.0,0.02129652]
[1762792911159,0.3287006,105100.0,105090.0,0.02202919]
[1762792912258,0.6895006,105100.0,105090.0,0.00080919]
[1762792912464,0.1385101,105090.0,105080.0,0.00014246]
[1762792912660,0.6461997,105090.0,105080.0,0.00014246]
[1762792913559,0.6461997,105090.0,105080.0,0.00087513]
[1762792913760,0.64626729,105090.0,105080.0,0.00087513]
[1762792913961,0.64626729,105090.0,105080.0,0.00014246]
[1762792914161,0.64626729,105090.0,105080.0,0.00214246]
[1762792914749,0.37699562,105090.0,105080.0,0.00214246]
[1762792914949,0.47217572,105090.0,105080.0,0.02409513]
[1762792915156,0.47217572,105090.0,105080.0,0.00287513]
[1762792915566,0.47217572,105090.0,105080.0,0.00587513]
[1762792915755,0.64626729,105090.0,105080.0,0.00587513]
[1762792917565,0.64626729,105090.0,105080.0,0.05201513]
[1762792917769,0.47217572,105090.0,105080.0,0.05201513]
[1762792918260,0.47217572,105090.0,105080.0,0.14720433]
[1762792918459,0.47217572,105090.0,105080.0,0.05201513]
[1762792918655,0.64626729,105090.0,105080.0,0.05201513]
[1762792919058,0.14077572,105090.0,105080.0,0.14720433]
[1762792919270,0.47213572,105090.0,105080.0,0.00587513]
[1762792919559,0.64622729,105090.0,105080.0,0.00587513]
[1762792919965,0.64622729,105090.0,105080.0,0.02902513]
[1762792920466,0.47213572,105090.0,105080.0,0.05201513]
[1762792920658,0.37695562,105090.0,105080.0,0.50800433]
[1762792920857,0.47213572,105090.0,105080.0,0.14720433]
[1762792921057,0.47213572,105090.0,105080.0,0.50800433]
[1762792921366,0.04559562,105090.0,105080.0,0.50800433]
[1762792921566,0.04559562,105090.0,105080.0,0.6930259]
[1762792921567,6.759e-05,105090.0,105080.0,0.6930259]
[1762792921767,6.759e-05,105090.0,105080.0,0.51893433]
[1762792921961,0.00226562,105090.0,105080.0,0.51893433]
[1762792922154,0.14360572,105090.0,105080.0,0.42374513]
[1762792922561,0.14360572,105090.0,105080.0,0.05201513]
[1762792922761,0.31769729,105090.0,105080.0,0.00587513]
[1762792923263,0.14360572,105090.0,105080.0,0.05201513]
[1762792923667,0.14360572,105090.0,105080.0,0.15818433]
[1762792923862,0.04842562,105090.0,105080.0,0.51898433]
[1762792924056,0.14360572,105090.0,105080.0,0.42379513]
[1762792924260,0.14360572,105090.0,105080.0,0.42179513]
[1762792924463,0.14360572,105090.0,105080.0,0.41181513]
[1762792925157,0.14360572,105090.0,105080.0,0.04801513]
[1762792925469,0.31769729,105090.0,105080.0,0.00387513]
[1762792925861,0.67849729,105090.0,105080.0,0.00387513]
[1762792926870,0.14360572,105090.0,105080.0,0.05001513]
[1762792927170,0.67849729,105090.0,105080.0,0.00387513]
[1762792927465,0.31769729,105090.0,105080.0,0.12221433]
[1762792927767,0.67849729,105090.0,105080.0,0.05001513]
[1762792928566,0.31769729,105090.0,105080.0,0.05001513]
[1762792928871,0.31769729,105090.0,105080.0,0.14520433]
[1762792929364,0.31769729,105090.0,105080.0,0.05001513]
[1762792929871,0.22251719,105090.0,105080.0,0.14520433]
[1762792930068,0.47500572,105090.0,105080.0,0.15618433]
[1762792930760,0.37982562,105090.0,105080.0,0.15618433]
[1762792930956,0.47500572,105090.0,105080.0,0.15618433]
[1762792931164,0.47500572,105090.0,105080.0,0.05001513]
[1762792931857,0.47500572,105090.0,105080.0,0.50600433]
[1762792932171,0.33366562,105090.0,105080.0,0.51698433]
[1762792932869,6.759e-05,105090.0,105080.0,0.51698433]
[1762792933067,0.00014246,105110.0,105100.0,0.1546011]
[1762792933266,0.00234049,105110.0,105100.0,0.87693377]
[1762792933662,0.00014246,105110.0,105100.0,0.87693377]
[1762792933865,0.00014246,105110.0,105100.0,1.28886534]
[1762792934065,0.00014246,105110.0,105100.0,1.05102534]